fUST/lending_fUST_20241030
["ID","MTS","AMOUNT","RATE_DAILY","PERIOD"]
[340997639,1730225452219,-283.60865252,0.00023013,3]
[340997640,1730225452229,-500.0,0.00023013,3]
[340997641,1730225452240,-248.40015235,0.00023013,3]
[340997642,1730225452250,-720.92,0.00023013,3]
[340997643,1730225452260,-500.0,0.00023013,3]
[340997644,1730225452274,-352.286542,0.00023013,7]
[340997645,1730225452289,-352.286548,0.00023013,7]
[340997646,1730225452299,-500.0,0.00023013,3]
[340997647,1730225452308,-500.0,0.00023013,3]
[340997648,1730225452318,-500.0,0.00023013,3]
[340997649,1730225452328,-500.0,0.00023013,3]
[340997650,1730225452337,-544.75,0.00023013,3]
[340997651,1730225452348,-500.0,0.00023013,3]
[340997652,1730225452357,-500.0,0.00023013,3]
[340997653,1730225452367,-500.0,0.00023013,3]
[340997654,1730225452377,-500.0,0.00023013,3]
[340997655,1730225452389,-500.0,0.00023013,3]
[340997656,1730225452399,-421.27843807,0.00023013,3]
[340997657,1730225452409,-532.43,0.00023013,3]
[340997658,1730225452418,-500.0,0.00023013,3]
[340997659,1730225452429,-500.0,0.00023013,3]
[340997660,1730225452440,-500.0,0.00023013,3]
[340997661,1730225452449,-500.0,0.00023013,3]
[340997662,1730225452459,-518.1,0.00023013,3]
[340997663,1730225452468,-214.83,0.00023013,3]
[340997664,1730225452477,-629.67,0.00023013,3]
[340997665,1730225452487,-500.0,0.00023013,3]
[340997666,1730225452496,-500.0,0.00023013,3]
[340997667,1730225452507,-500.0,0.00023013,3]
[340997668,1730225452518,-612.89,0.00023013,3]
[340997669,1730225452529,-500.0,0.00023013,3]
[340997670,1730225452539,-500.0,0.00023013,3]
[340997671,1730225452550,-542.62,0.00023013,3]
[340997672,1730225452561,-500.0,0.00023013,3]
[340997673,1730225452571,-500.0,0.00023013,3]
[340997674,1730225452580,-500.0,0.00023013,3]
[340997675,1730225452590,-164.0,0.00023014,2]
[340997676,1730225452600,-235.0,0.00023014,2]
[340997677,1730225452611,-161.0,0.00023014,2]
[340997678,1730225452622,-500.0,0.00023233,2]
[340997679,1730225452632,-711.38,0.00023277,3]
[340997680,1730225452643,-355.68,0.00023277,3]
[340997681,1730225452652,-218.71881111,0.00023287,3]
[340997682,1730225452663,-500.0,0.00023287,3]
[340997683,1730225452673,-500.0,0.00023287,3]
[340997684,1730225452683,-500.0,0.00023287,3]
[340997685,1730225452692,-500.0,0.00023287,3]
[340997686,1730225452701,-9226.2,0.00023287,3]
[340997687,1730225452710,-1019.56,0.00023287,3]
[340997688,1730225452720,-500.0,0.00023287,3]
[340997689,1730225452729,-500.0,0.00023287,3]
[340997690,1730225452738,-500.0,0.00023287,3]
[340997691,1730225452748,-834.02,0.00023287,3]
[340997692,1730225452759,-500.0,0.00023287,3]
[340997693,1730225452769,-720.92,0.00023287,3]
[340997694,1730225452780,-500.0,0.00023287,3]
[340997695,1730225452794,-500.0,0.00023287,3]
[340997696,1730225452805,-166.24,0.00023287,3]
[340997697,1730225452816,-500.0,0.00023287,3]
[340997698,1730225452826,-210.54,0.00023287,3]
[340997699,1730225452835,-500.0,0.00023287,3]
[340997700,1730225452845,-500.0,0.00023287,3]
[340997701,1730225452855,-532.43,0.00023287,3]
[340997702,1730225452866,-500.0,0.00023287,3]
[340997703,1730225452876,-500.0,0.00023287,3]
[340997704,1730225452887,-500.0,0.00023287,3]
[340997705,1730225452896,-500.0,0.00023287,3]
[340997706,1730225452904,-629.67,0.00023287,3]
[340997707,1730225452914,-547.87,0.00023287,3]
[340997708,1730225452923,-500.0,0.00023287,3]
[340997709,1730225452932,-500.0,0.00023287,3]
[340997710,1730225452942,-500.0,0.00023287,3]
[340997711,1730225452951,-500.0,0.00023287,3]
[340997712,1730225452960,-500.0,0.00023311,30]
[340997713,1730225452970,-500.0,0.00023311,30]
[340997714,1730225452979,-500.0,0.00023311,30]
[340997715,1730225452988,-500.0,0.00023311,30]
[340997716,1730225452998,-500.0,0.00023311,30]
[340997717,1730225453007,-500.0,0.00023311,30]
[340997718,1730225453017,-500.0,0.00023311,30]
[340997719,1730225453028,-500.0,0.00023311,30]
[340997720,1730225453039,-500.0,0.00023311,30]
[340997721,1730225453049,-500.0,0.00023311,30]
[340997722,1730225453059,-500.0,0.00023311,30]
[340997723,1730225453068,-500.0,0.00023311,30]
[340997724,1730225453078,-500.0,0.00023311,30]
[340997725,1730225453089,-500.0,0.00023311,30]
[340997726,1730225453098,-500.0,0.00023311,30]
[340997727,1730225453107,-500.0,0.00023311,30]
[340997728,1730225453117,-500.0,0.00023311,30]
[340997729,1730225453126,-500.0,0.00023311,30]
[340997730,1730225453136,-500.0,0.00023311,30]
[340997731,1730225453146,-700.0,0.00023311,30]
[340997732,1730225453159,-500.0,0.00023354,2]
[340997733,1730225453267,-151.0,0.00023456,7]
[340997734,1730225453276,-172.955596,0.00023456,7]
[340997735,1730225453289,-166.666666,0.00023456,2]
[340997736,1730225453298,-218.42488,0.00023475,2]
[340997737,1730225453307,-163.818659,0.00023475,2]
[340997738,1730225453317,-218.42488,0.00023475,2]
[340997739,1730225453326,-186.738804,0.00023475,2]
[340997740,1730225453335,-174.750289,0.00023475,2]
[340997741,1730225453345,-500.0,0.00023477,2]
[340997742,1730225453354,-151.0,0.0002349,2]
[340997743,1730225453363,-500.0,0.00023531,14]
[340997744,1730225453373,-500.0,0.00023561,3]
[340997745,1730225453382,-500.0,0.00023561,3]
[340997746,1730225453391,-500.0,0.00023561,3]
[340997747,1730225453402,-500.0,0.00023561,3]
[340997748,1730225453411,-9226.2,0.00023561,3]
[340997749,1730225453420,-1019.56,0.00023561,3]
[340997750,1730225453429,-500.0,0.00023561,3]
[340997751,1730225453439,-500.0,0.00023561,3]
[340997752,1730225453447,-500.0,0.00023561,3]
[340997753,1730225453458,-834.02,0.00023561,3]
[340997754,1730225453467,-500.0,0.00023561,3]
[340997755,1730225453476,-720.92,0.00023561,3]
[340997756,1730225453486,-500.0,0.00023561,3]
[340997757,1730225453496,-390.82630103,0.00023561,3]
[340997758,1730225453505,-532.43,0.00023561,3]
[340997759,1730225453514,-500.0,0.00023561,3]
[340997760,1730225453523,-500.0,0.00023561,3]
[340997761,1730225453533,-500.0,0.00023561,3]
[340997762,1730225453542,-223.61452841,0.00023561,3]
[340997763,1730225453552,-629.67,0.00023561,3]
[340997764,1730225453561,-500.0,0.00023561,3]
[340997765,1730225453571,-500.0,0.00023561,3]
[340997766,1730225453581,-500.0,0.00023561,3]
[340997767,1730225453591,-500.0,0.00023561,3]
[340997768,1730225453600,-2395.0,0.00023642,2]
[340997769,1730225453609,-1107.0,0.00023642,2]
[340997770,1730225453619,-151.0,0.00023668,2]
[340997771,1730225453630,-170.214,0.000237,4]
[340997772,1730225453641,-6727.36065201,0.00023701,2]
[340997773,1730225453652,-500.0,0.00023835,3]
[340997774,1730225453662,-500.0,0.00023835,3]
[340997775,1730225453672,-500.0,0.00023835,3]
[340997776,1730225453683,-544.12666182,0.00023835,3]
[340997777,1730225453692,-9226.2,0.00023835,3]
[340997778,1730225453703,-1019.56,0.00023835,3]
[340997779,1730225453715,-466.92778798,0.00023835,3]
[340997780,1730225453726,-500.0,0.00023835,3]
[340997781,1730225453735,-500.0,0.00023835,3]
[340997782,1730225453746,-834.02,0.00023835,3]
[340997783,1730225453756,-151.0,0.00023835,7]
[340997784,1730225453766,-500.0,0.00023835,3]
[340997785,1730225453776,-720.92,0.00023835,3]
[340997786,1730225453789,-261.64,0.00023835,3]
[340997787,1730225453800,-532.43,0.00023835,3]
[340997788,1730225453810,-500.0,0.00023835,3]
[340997789,1730225453819,-500.0,0.00023835,3]
[340997790,1730225453830,-272.31952537,0.00023835,3]
[340997791,1730225453841,-629.67,0.00023835,3]
[340997792,1730225453850,-567.95,0.00023835,3]
[340997793,1730225453861,-500.0,0.00023835,3]
[340997794,1730225453872,-248.73899485,0.00023835,3]
[340997795,1730225453884,-500.0,0.00023835,3]
[340997796,1730225453894,-151.0,0.00023845,2]
[340997797,1730225453904,-4089.70861129,0.00023852,2]
[340997798,1730225453913,-163.818659,0.00023866,2]
[340997799,1730225453923,-166.666666,0.00023969,2]
[340997800,1730225453932,-394.0,0.00024,11]
[340997801,1730225453942,-151.0,0.00024023,2]
[340997802,1730225453952,-600.0,0.00024086,2]
[340997803,1730225453962,-150.112233,0.000241,9]
[340997804,1730225453971,-500.0,0.00024109,3]
[340997805,1730225453981,-500.0,0.00024109,3]
[340997806,1730225453990,-632.20212828,0.00024109,3]
[340997807,1730225453999,-9226.2,0.00024109,3]
[340997808,1730225454009,-1019.56,0.00024109,3]
[340997809,1730225454018,-500.0,0.00024109,3]
[340997810,1730225454029,-500.0,0.00024109,3]
[340997811,1730225454040,-834.02,0.00024109,3]
[340997812,1730225454052,-503.54,0.00024109,3]
[340997813,1730225454063,-720.92,0.00024109,3]
[340997814,1730225454072,-532.43,0.00024109,3]
[340997815,1730225454082,-249.72870402,0.00024109,3]
[340997816,1730225454091,-500.0,0.00024109,3]
[340997817,1730225454101,-629.67,0.00024109,3]
[340997818,1730225454111,-500.0,0.00024109,3]
[340997819,1730225454120,-500.0,0.00024109,3]
[340997820,1730225454130,-163.0,0.00024164,2]
[340997821,1730225454141,-238.0,0.00024164,2]
[340997822,1730225454152,-151.0,0.00024201,2]
[340997823,1730225454163,-163.818659,0.00024257,2]
[340997824,1730225454173,-600.0,0.00024337,2]
[340997825,1730225454183,-308.294,0.0002437,2]
[340997826,1730225454193,-151.0,0.00024379,2]
[340997827,1730225454203,-368.03,0.00024383,3]
[340997828,1730225454212,-500.0,0.00024383,3]
[340997829,1730225454222,-9226.2,0.00024383,3]
[340997830,1730225454231,-1019.56,0.00024383,3]
[340997831,1730225454241,-500.0,0.00024383,3]
[340997832,1730225454250,-500.0,0.00024383,3]
[340997833,1730225454260,-834.02,0.00024383,3]
[340997834,1730225454272,-720.92,0.00024383,3]
[340997835,1730225454290,-532.43,0.00024383,3]
[340997836,1730225454299,-500.0,0.00024383,3]
[340997837,1730225454309,-629.67,0.00024383,3]
[340997838,1730225454318,-500.0,0.00024383,3]
[340997839,1730225454328,-500.0,0.00024383,3]
[340997840,1730225454338,-150.112233,0.000244,9]
[340997841,1730225454347,-3000.0,0.000244,2]
[340997842,1730225454356,-3000.0,0.0002441,2]
[340997843,1730225454367,-3000.0,0.0002442,2]
[340997844,1730225454376,-3000.0,0.0002443,2]
[340997845,1730225454386,-3000.0,0.0002444,2]
[340997846,1730225454395,-3000.0,0.0002445,2]
[340997847,1730225454405,-3000.0,0.0002446,2]
[340997848,1730225454414,-3000.0,0.0002447,2]
[340997849,1730225454423,-587.0,0.00024471,2]
[340997850,1730225454433,-3000.0,0.0002448,2]
[340997851,1730225454442,-155.0117378,0.0002448,7]
[340997852,1730225454457,-155.0117378,0.0002448,7]
[340997853,1730225454468,-155.0117378,0.0002448,7]
[340997854,1730225454477,-155.0117378,0.0002448,7]
[340997855,1730225454487,-155.0117378,0.0002448,7]
[340997856,1730225454497,-155.0117378,0.0002448,7]
[340997857,1730225454506,-155.0117378,0.0002448,7]
[340997858,1730225454515,-155.01,0.0002448,7]
[340997859,1730225454525,-155.0117378,0.0002448,7]
[340997860,1730225454536,-155.0117378,0.0002448,7]
[340997861,1730225454545,-155.0117378,0.0002448,7]
[340997862,1730225454555,-155.0117378,0.0002448,7]
[340997863,1730225454564,-155.0117378,0.0002448,7]
[340997864,1730225454573,-155.0117378,0.0002448,7]
[340997865,1730225454582,-155.0117378,0.0002448,7]
[340997866,1730225454591,-155.0117378,0.0002448,7]
[340997867,1730225454601,-155.0117378,0.0002448,7]
[340997868,1730225454610,-155.0117378,0.0002448,7]
[340997869,1730225454620,-166.666666,0.00024482,2]
[340997870,1730225454629,-155.0117378,0.00024485,7]
[340997871,1730225454639,-3000.0,0.0002449,2]
[340997872,1730225454649,-3000.0,0.000245,2]
[340997873,1730225454658,-3000.0,0.0002451,2]
[340997874,1730225454667,-3000.0,0.0002452,2]
[340997875,1730225454677,-3000.0,0.0002453,2]
[340997876,1730225454686,-3000.0,0.0002454,2]
[340997877,1730225454696,-3000.0,0.0002455,2]
[340997878,1730225454705,-151.0,0.00024557,2]
[340997879,1730225454715,-3000.0,0.0002456,2]
[340997880,1730225454724,-3000.0,0.0002457,2]
[340997881,1730225454734,-3000.0,0.0002458,2]
[340997882,1730225454744,-600.0,0.00024588,2]
[340997883,1730225454754,-3000.0,0.0002459,2]
[340997884,1730225454764,-551.95,0.00024591,2]
[340997885,1730225454773,-3000.0,0.000246,2]
[340997886,1730225454783,-3000.0,0.0002461,2]
[340997887,1730225454796,-3000.0,0.0002462,2]
[340997888,1730225454805,-3000.0,0.0002463,2]
[340997889,1730225454814,-3000.0,0.0002464,2]
[340997890,1730225454823,-186.738804,0.00024649,2]
[340997891,1730225454834,-174.750289,0.00024649,2]
[340997892,1730225454843,-163.818659,0.00024649,2]
[340997893,1730225454852,-3000.0,0.0002465,2]
[340997894,1730225454862,-500.0,0.00024657,2]
[340997895,1730225454872,-500.0,0.00024657,3]
[340997896,1730225454882,-200.0,0.00024657,3]
[340997897,1730225454890,-200.0,0.00024657,3]
[340997898,1730225454900,-200.0,0.00024657,3]
[340997899,1730225454909,-200.0,0.00024657,3]
[340997900,1730225454919,-200.0,0.00024657,3]
[340997901,1730225454928,-200.0,0.00024657,3]
[340997902,1730225454938,-200.0,0.00024657,3]
[340997903,1730225454947,-200.0,0.00024657,3]
[340997904,1730225454957,-200.0,0.00024657,3]
[340997905,1730225454967,-200.0,0.00024657,3]
[340997906,1730225454977,-207.01721544,0.00024657,3]
[340997907,1730225454986,-9226.2,0.00024657,3]
[340997908,1730225454995,-1019.56,0.00024657,3]
[340997909,1730225455005,-500.0,0.00024657,3]
[340997910,1730225455014,-500.0,0.00024657,3]
[340997911,1730225455024,-834.02,0.00024657,3]
[340997912,1730225455035,-720.92,0.00024657,3]
[340997913,1730225455044,-532.43,0.00024657,3]
[340997914,1730225455054,-500.0,0.00024657,3]
[340997915,1730225455063,-629.67,0.00024657,3]
[340997916,1730225455072,-500.0,0.00024657,3]
[340997917,1730225455082,-458.57,0.00024657,3]
[340997918,1730225455091,-150.0,0.00024658,2]
[340997919,1730225455102,-200.0,0.00024658,15]
[340997920,1730225455113,-151.0,0.00024658,7]
[340997921,1730225455124,-151.0,0.00024658,7]
[340997922,1730225455137,-151.178142,0.00024658,7]
[340997923,1730225455149,-380.0,0.00024658,2]
[340997924,1730225455159,-151.0,0.00024658,7]
[340997925,1730225455168,-151.0,0.00024658,7]
[340997926,1730225455178,-151.0,0.00024658,7]
[340997927,1730225455187,-151.0,0.00024658,7]
[340997928,1730225455196,-151.0,0.00024658,7]
[340997929,1730225455205,-151.0,0.00024658,7]
[340997930,1730225455215,-151.0,0.00024658,7]
[340997931,1730225455225,-151.0,0.00024658,7]
[340997932,1730225455235,-151.0,0.00024658,7]
[340997933,1730225455246,-151.0,0.00024658,7]
[340997934,1730225455255,-151.0,0.00024658,7]
[340997935,1730225455265,-151.0,0.00024658,7]
[340997936,1730225455274,-151.0,0.00024658,7]
[340997937,1730225455285,-151.132904,0.00024658,7]
[340997938,1730225455296,-660.0,0.00024658,2]
[340997939,1730225455307,-616.87029099,0.00024658,2]
[340997940,1730225455316,-616.87029099,0.00024658,2]
[340997941,1730225455326,-616.87029099,0.00024658,2]
[340997942,1730225455336,-616.87029099,0.00024658,2]
[340997943,1730225455428,-616.87029099,0.00024658,2]
[340997944,1730225455439,-616.87029099,0.00024658,2]
[340997945,1730225455449,-616.87029099,0.00024658,2]
[340997946,1730225455459,-616.87029099,0.00024658,2]
[340997947,1730225455468,-616.87029099,0.00024658,2]
[340997948,1730225455478,-616.87029099,0.00024658,2]
[340997949,1730225455487,-616.87029099,0.00024658,2]
[340997950,1730225455497,-616.87029099,0.00024658,2]
[340997951,1730225455507,-616.87029099,0.00024658,2]
[340997952,1730225455516,-616.87029099,0.00024658,2]
[340997953,1730225455526,-616.87029099,0.00024658,2]
[340997954,1730225455536,-616.87029099,0.00024658,2]
[340997955,1730225455545,-616.87029099,0.00024658,2]
[340997956,1730225455554,-616.87029099,0.00024658,2]
[340997957,1730225455564,-616.87029099,0.00024658,2]
[340997958,1730225455573,-616.87029099,0.00024658,2]
[340997959,1730225455582,-616.87029099,0.00024658,2]
[340997960,1730225455592,-616.87029099,0.00024658,2]
[340997961,1730225455602,-616.87029099,0.00024658,2]
[340997962,1730225455611,-616.87029099,0.00024658,2]
[340997963,1730225455620,-616.87029099,0.00024658,2]
[340997964,1730225455629,-616.87029099,0.00024658,2]
[340997965,1730225455638,-616.87029099,0.00024658,2]
[340997966,1730225455647,-616.87029099,0.00024658,2]
[340997967,1730225455657,-616.87029099,0.00024658,2]
[340997968,1730225455666,-616.87029099,0.00024658,2]
[340997969,1730225455675,-616.87029099,0.00024658,2]
[340997970,1730225455685,-616.87029099,0.00024658,2]
[340997971,1730225455694,-616.87029099,0.00024658,2]
[340997972,1730225455703,-616.87029099,0.00024658,2]
[340997973,1730225455713,-616.87029099,0.00024658,2]
[340997974,1730225455723,-616.87029099,0.00024658,2]
[340997975,1730225455732,-616.87029099,0.00024658,2]
[340997976,1730225455742,-616.87029099,0.00024658,2]
[340997977,1730225455752,-616.87029099,0.00024658,2]
[340997978,1730225455761,-616.87029099,0.00024658,2]
[340997979,1730225455771,-616.87029099,0.00024658,2]
[340997980,1730225455782,-616.87029099,0.00024658,2]
[340997981,1730225455794,-616.87029099,0.00024658,2]
[340997982,1730225455803,-616.87029099,0.00024658,2]
[340997983,1730225455813,-3000.0,0.0002466,2]
[340997984,1730225455823,-3000.0,0.0002467,2]
[340997985,1730225455832,-3000.0,0.0002468,2]
[340997986,1730225455842,-3000.0,0.0002469,2]
[340997987,1730225455851,-4384.31281928,0.000247,2]
[340997988,1730225455861,-150.112233,0.000247,8]
[340997989,1730225455871,-3000.0,0.000247,2]
[340997990,1730225455881,-3000.0,0.0002471,2]
[340997991,1730225455890,-3000.0,0.0002472,2]
[340997992,1730225455899,-3000.0,0.0002473,2]
[340997993,1730225455909,-151.0,0.00024734,2]
[340997994,1730225455918,-3000.0,0.0002474,2]
[340997995,1730225455927,-3000.0,0.0002475,2]
[340997996,1730225455937,-3000.0,0.0002476,2]
[340997997,1730225455947,-3000.0,0.0002477,2]
[340997998,1730225455957,-3000.0,0.0002478,2]
[340997999,1730225455967,-3000.0,0.0002479,2]
[340998000,1730225455977,-5746.969148,0.000248,2]
[340998001,1730225455986,-93350.78965262,0.00024839,2]
[340998002,1730225456345,-396.81107189,0.00021917,3]
[340998003,1730225456357,-103.18892811,0.00021917,3]
[340998004,1730225456366,-252.47534973,0.00021917,3]
[340998005,1730225456377,-247.52465027,0.00021917,3]
[340998006,1730225456386,-165.0,0.00022,2]
[340998007,1730225456396,-500.0,0.00022191,3]
[340998008,1730225456405,-501.7003017,0.00022191,3]
[340998009,1730225456414,-500.0,0.00022465,3]
[340998010,1730225456424,-604.53288517,0.00024658,2]
[340998011,1730225456433,-604.53288517,0.00024658,2]
[340998012,1730225456442,-604.53288517,0.00024658,2]
[340998013,1730225456452,-604.53288517,0.00024658,2]
[340998014,1730225456461,-604.53288517,0.00024658,2]
[340998015,1730225456471,-604.53288517,0.00024658,2]
[340998016,1730225456480,-604.53288517,0.00024658,2]
[340998017,1730225456490,-604.53288517,0.00024658,2]
[340998018,1730225456499,-604.53288517,0.00024658,2]
[340998019,1730225456512,-604.53288517,0.00024658,2]
[340998020,1730225456524,-604.53288517,0.00024658,2]
[340998021,1730225456534,-604.53288517,0.00024658,2]
[340998022,1730225456543,-604.53288517,0.00024658,2]
[340998023,1730225456552,-604.53288517,0.00024658,2]
[340998024,1730225456561,-604.53288517,0.00024658,2]
[340998025,1730225456571,-604.53288517,0.00024658,2]
[340998026,1730225456580,-604.53288517,0.00024658,2]
[340998027,1730225456589,-604.53288517,0.00024658,2]
[340998028,1730225456598,-604.53288517,0.00024658,2]
[340998029,1730225456607,-604.53288517,0.00024658,2]
[340998030,1730225456617,-604.53288517,0.00024658,2]
[340998031,1730225456626,-604.53288517,0.00024658,2]
[340998032,1730225456636,-604.53288517,0.00024658,2]
[340998033,1730225456646,-604.53288517,0.00024658,2]
[340998034,1730225456657,-604.53288517,0.00024658,2]
[340998035,1730225456668,-604.53288517,0.00024658,2]
[340998036,1730225456679,-604.53288517,0.00024658,2]
[340998037,1730225456691,-604.53288517,0.00024658,2]
[340998038,1730225456702,-604.53288517,0.00024658,2]
[340998039,1730225456713,-604.53288517,0.00024658,2]
[340998040,1730225456724,-604.53288517,0.00024658,2]
[340998041,1730225456737,-604.53288517,0.00024658,2]
[340998042,1730225456748,-154309.7969099,0.00024839,2]
[340998043,1730225456760,-600.0,0.00024839,2]
[340998044,1730225456769,-946.79,0.000249,14]
[340998045,1730225456780,-2115.94,0.000249,14]
[340998046,1730225456796,-155.01,0.000249,7]
[340998047,1730225456806,-151.0,0.00024912,2]
[340998048,1730225456817,-500.0,0.00024931,3]
[340998049,1730225456828,-1019.56,0.00024931,3]
[340998050,1730225456839,-500.0,0.00024931,3]
[340998051,1730225456850,-500.0,0.00024931,3]
[340998052,1730225456860,-834.02,0.00024931,3]
[340998053,1730225456872,-720.92,0.00024931,3]
[340998054,1730225456881,-532.43,0.00024931,3]
[340998055,1730225456890,-500.0,0.00024931,3]
[340998056,1730225456900,-629.67,0.00024931,3]
[340998057,1730225456910,-500.0,0.00024931,3]
[340998058,1730225456919,-150.0,0.00024973,2]
[340998059,1730225456929,-1037.64402643,0.00025,2]
[340998060,1730225456939,-1000.0,0.00025,5]
[340998061,1730225456948,-2336.10681472,0.00025,120]
[340998062,1730225456957,-8847.50723659,0.00025,120]
[340998063,1730225456966,-124128.53206639,0.00025,2]
[340998064,1730225457148,645.0,0.00035088,30]
[340998065,1730225457208,645.0,0.00035088,30]
[340998066,1730225457355,645.0,0.00035088,30]
[340998067,1730225457680,642.5,0.00035088,30]
[340998068,1730225638645,258.299999,0.00035088,120]
[340998069,1730225925292,126462.20987498,0.00035081,120]
[340998070,1730225988674,170.110929,0.00013973,2]
[340998081,1730226489590,180.887674,0.00013973,2]
[340998082,1730226498455,17585.36729917,0.00035072,30]
[340998083,1730226522802,2667.46690574,0.00035072,30]
[340998128,1730226638588,-300.0,0.00020233,2]
[340998129,1730226638599,-300.0,0.00020233,2]
[340998130,1730226638608,-2416.71418326,0.00020234,2]
[340998131,1730226638708,-22483.28581674,0.00020234,2]
[340998132,1730226638718,-236.162503,0.00020298,2]
[340998133,1730226638727,-236.162503,0.00020353,2]
[340998134,1730226638736,-500.0,0.00020376,2]
[340998135,1730226638747,-500.0,0.00020376,2]
[340998136,1730226638758,-500.0,0.00020376,2]
[340998137,1730226638767,-500.0,0.00020376,2]
[340998138,1730226638777,-500.0,0.00020376,2]
[340998139,1730226638790,-500.0,0.00020376,2]
[340998140,1730226638799,-500.0,0.00020376,2]
[340998141,1730226638808,-500.0,0.00020376,2]
[340998142,1730226638818,-500.0,0.00020376,2]
[340998143,1730226638827,-500.0,0.00020376,2]
[340998144,1730226638837,-500.0,0.00020376,2]
[340998145,1730226638847,-461.22923119,0.00020376,2]
[340998146,1730226638856,-500.0,0.00020376,2]
[340998147,1730226638866,-500.0,0.00020376,2]
[340998148,1730226638875,-142.31738785,0.00020376,2]
[340998156,1730226641048,-5983.47689994,0.00020309,2]
[340998157,1730226641058,-357.68261215,0.00020376,2]
[340998158,1730226641068,-500.0,0.00020376,2]
[340998159,1730226641078,-500.0,0.00020376,2]
[340998160,1730226641087,-500.0,0.00020376,2]
[340998161,1730226641097,-500.0,0.00020376,2]
[340998162,1730226641106,-651.5,0.00020376,2]
[340998163,1730226641116,-500.0,0.00020376,2]
[340998164,1730226641125,-500.0,0.00020376,2]
[340998165,1730226641135,-500.0,0.00020376,2]
[340998166,1730226641145,-397.89982028,0.00020376,2]
[340998167,1730226641155,-500.0,0.00020376,2]
[340998168,1730226641164,-425.93618373,0.00020376,2]
[340998169,1730226641177,-500.0,0.00020376,2]
[340998170,1730226641186,-500.0,0.00020376,2]
[340998171,1730226641196,-500.0,0.00020376,2]
[340998172,1730226641205,-500.0,0.00020376,2]
[340998173,1730226641216,-500.0,0.00020376,2]
[340998174,1730226641225,-500.0,0.00020376,2]
[340998175,1730226641235,-500.0,0.00020376,2]
[340998176,1730226641245,-500.0,0.00020376,2]
[340998177,1730226641255,-500.0,0.00020376,2]
[340998178,1730226641265,-500.0,0.00020376,2]
[340998179,1730226641275,-500.0,0.00020376,2]
[340998180,1730226641284,-500.0,0.00020376,2]
[340998181,1730226641296,-500.0,0.00020376,2]
[340998182,1730226641306,-500.0,0.00020376,2]
[340998183,1730226641316,-500.0,0.00020376,2]
[340998184,1730226641326,-500.0,0.00020376,2]
[340998185,1730226641335,-489.92770263,0.00020376,2]
[340998186,1730226641345,-588.06595546,0.00020377,2]
[340998187,1730226641355,-38216.25022318,0.00020377,2]
[340998188,1730226641365,-236.162503,0.00020409,2]
[340998189,1730226641374,-236.162503,0.00020465,2]
[340998190,1730226641383,-236.162503,0.0002052,2]
[340998191,1730226641393,-236.162503,0.00020576,2]
[340998192,1730226641402,-185.005971,0.0002059,2]
[340998193,1730226641412,-236.162503,0.00020632,2]
[340998194,1730226641421,-236.162503,0.00020687,2]
[340998195,1730226641430,-236.162503,0.00020743,2]
[340998196,1730226641440,-236.162503,0.00020799,2]
[340998197,1730226641449,-236.162503,0.00020854,2]
[340998198,1730226641459,-236.162503,0.0002091,2]
[340998199,1730226641468,-236.162503,0.00020966,2]